Cogmind - Beta 13 @@@ ROGUE MODE // 2024.03.31 @ 17:14:43 Player: SonVince Result: Destroyed by as-08710 with Assembled Maul Performance ------------- Evolutions (0) 0 Regions Visited (2) 400 Robots Destroyed (30) 150 Value Destroyed (506) 506 Prototype IDs (0) 0 Alien Tech Used (0) 0 Bonus (-21) -21 TOTAL SCORE: 1035 Bonus ------- Friendly Fire -21 Cogmind --------- Core Integrity 0/250 Matter 300/300 Energy 25/100 System Corruption 6% Temperature Warning (362) Movement Core (400) Ox7 Location -10/Mines Parts ------- > --- POWER (1) -------- (None) > --- PROPULSION (2) --- Improved Aluminum Leg > --- UTILITY (2) ------ Large Storage Unit Signal Interpreter > --- WEAPON (2) ------- Spread Laser > --- INVENTORY (15) --- Light Ion Engine Light Ion Engine Light Treads Improved Aluminum Leg Improved Aluminum Leg Seismic Detector Light Armor Plating Light Armor Plating Hacking Suite Particle Cannon Heavy Hammer Peak State ------------ > --- POWER ------------ Light Ion Engine > --- PROPULSION ------- Light Treads Improved Aluminum Leg > --- UTILITY ---------- Large Storage Unit Signal Interpreter > --- WEAPON ----------- Spread Laser Spread Laser > --- INVENTORY -------- Light Ion Engine Light Ion Engine Light Treads Improved Aluminum Leg Improved Aluminum Leg Improved Aluminum Leg Seismic Detector Light Armor Plating Light Armor Plating Hacking Suite Spread Laser Particle Cannon Heavy Hammer [Rating: 12] Favorites ----------- Power Light Ion Engine Engine Light Ion Engine Propulsion Light Treads Treads Light Treads Leg Improved Aluminum Leg Utility Signal Interpreter Storage Large Storage Unit Processor Signal Interpreter Weapon Spread Laser Energy Gun Spread Laser Energy Cannon Particle Cannon Ballistic Gun Assault Rifle Impact Weapon Heavy Hammer Build | -11 -10 -10 ------- Run | Yrd Mat Min Slots Evolved . | . . . Power . | . . . Propulsion . | . . . Utility . | . . . Weapon . | . . . Parts Attached 23 | 6 16 1 Power 3 | 1 2 . Engine 3 | 1 2 . Core . | . . . Reactor . | . . . Propulsion 4 | 2 2 . Treads 2 | 2 . . Leg 2 | . 2 . Wheel . | . . . Hover . | . . . Flight . | . . . Utility 7 | 1 6 . Device . | . . . Storage 5 | 1 4 . Processor 2 | . 2 . Hackware . | . . . Protection . | . . . Artifact . | . . . Weapon 9 | 2 6 1 Energy Gun 5 | . 4 1 Energy Cannon 1 | . 1 . Ballistic Gun 2 | 2 . . Ballistic Cannon . | . . . Launcher . | . . . Special Weapon . | . . . Impact Weapon 1 | . 1 . Slashing Weapon . | . . . Piercing Weapon . | . . . Special Melee Weapon . | . . . Unidentified Prototypes . | . . . Parts Lost 5 | . 1 4 Power 2 | . 1 1 Propulsion 1 | . . 1 Utility . | . . . Weapon 2 | . . 2 Highest Loss Streak 4 | . 1 4 To Critical Strikes . | . . . Average Slot Usage (%) 94 | . 94 91 Engine 10 | . 10 8 Treads 25 | . 26 . Leg 2 | . 1 28 Storage 14 | . 14 14 Processor 13 | . 13 14 Energy Gun 23 | . 23 25 Energy Cannon 1 | . 1 . Impact Weapon 1 | . 1 . Naked Turns . | . . . Heaviest Build 29 | 11 29 29 Greatest Support 40 | 40 40 26 Greatest Overweight (x) 7 | 2 1 7 Average Overweight (x) . | . . 1 Largest Inventory Capacity 25 | 8 25 15 Average Capacity 11 | 7 11 15 Most Carried 15 | 8 15 12 Average Carried 8 | 3 8 11 Final Capacity 15 | 8 15 15 Final Carried 12 | 4 12 11 Class Distribution -------------------- 100% | Mutant Dominant Class ---------------- Mutant | -10/Materials Mutant | -10/Mines Resources | -11 -10 -10 ----------- Run | Yrd Mat Min Matter Collected 416 | 227 189 . Remotely . | . . . Salvage Created 691 | . 680 11 Parts 46 | . 46 . Haulers Intercepted 2 | . 2 . Recyclers Shooed . | . . . Parts Field Recycled . | . . . Retrieved Matter . | . . . Parts Self-Destructed . | . . . Prevented . | . . . Kills | -11 -10 -10 ------- Run | Yrd Mat Min Combat Hostiles Destroyed 18 | . 15 3 Melee 1 | . 1 . Guns 16 | . 13 3 Classes Destroyed 9 | . 8 1 Worker 2 | . 2 . Builder 5 | . 5 . Hauler 2 | . 2 . Recycler 2 | . 2 . Operator 2 | . 2 . Watcher 2 | . 2 . Swarmer 6 | . 6 . Grunt 9 | . 9 . Assembled 3 | . . 3 Best Kill Streak 6 | . 6 3 Combat Bots Only 3 | . 3 3 Max Kills in Single Turn 2 | . 2 1 Gunslinging . | . . . Exploded . | . . . Melee 1 | . 1 . Uniques/NPCs Destroyed . | . . . Combat | -11 -10 -10 -------- Run | Yrd Mat Min Hostile Shots Fired 105 | . 54 51 Missed 24 | . 12 12 Damage Taken 1144 | . 467 677 Core 268 | . 71 197 Absorbed by Shields . | . . . Regen/Repaired (Parts) 45 | . 45 . Core Remaining (%) 100 | 100 . . Volleys Fired 52 | . 43 9 Largest 2 | . 2 2 Hottest 133 | . 133 130 Shots Fired 100 | . 84 16 Gun 93 | . 77 16 Cannon 7 | . 7 . Launcher . | . . . Special . | . . . Kinetic . | . . . Thermal 100 | . 84 16 Explosive . | . . . Electromagnetic . | . . . Robot Hit Streak 9 | . 9 7 Robot Miss Streak 11 | . 11 8 Penetration Max . | . . . Secondary Targets 1 | . 1 . Max Gunslinging Chain 1 | . 1 . Shots Hit Robots 89 | . 75 14 Core Hits 118 | . 88 30 Critical Kills 1 | . 1 . Critical Parts Destroyed 3 | . 3 . Critical Strikes 4 | . 4 . Smash 4 | . 4 . Melee Attacks 16 | . 16 . Impact 16 | . 16 . Slashing . | . . . Piercing . | . . . Sneak Attacks 4 | . 4 . Combat Hostiles . | . . . Follow-up Attacks . | . . . Damage Inflicted 1530 | . 1289 241 Guns 982 | . 741 241 Cannons 104 | . 104 . Explosions 45 | . 45 . Melee 399 | . 399 . Ramming . | . . . Kinetic . | . . . Thermal 1086 | . 845 241 Explosive . | . . . Electromagnetic 45 | . 45 . Impact 399 | . 399 . Slashing . | . . . Piercing . | . . . Highest Corruption 6 | . 2 6 Average Corruption 2 | . 2 2 Corruption Purged . | . . . Corruption Blocked . | . . . Effects 6 | . 6 . Matter Fused 1 | . 1 . Energy Discharges 2 | . 2 . Data Loss (minor) 2 | . 2 . Data Loss (major) 1 | . 1 . Overload Shots . | . . . Overflow Damage 240 | . 240 . Projectiles . | . . . Explosions . | . . . Melee 240 | . 240 . Knockbacks 2 | . 2 . Impact 2 | . 2 . Kinetic . | . . . Secondary . | . . . Self-Inflicted Damage 45 | . 45 . Shots 2 | . 2 . Rammed . | . . . Targets Rammed . | . . . Kicked . | . . . Crushed . | . . . Highest Temperature 411 | . 276 411 Average Temperature 93 | . 80 183 Received Heat Transfer 281 | . 141 140 Effects 3 | . 1 2 Energy Bleed 1 | . 1 . Short Circuit 1 | . . 1 Damage (minor) 1 | . . 1 Siege Activations . | . . . Robots Corrupted 1 | . 1 . Combat Hostiles . | . . . Parts Fried 8 | . 8 . Impact Corruptions 8 | . 8 . Robots Melted . | . . . Combat Hostiles . | . . . Parts Melted 1 | . 1 . Heat Transferred 1420 | . 1110 310 Parts Sabotaged . | . . . Parts Stolen . | . . . Parts Stripped . | . . . Power Chain Reactions . | . . . Alert | -11 -10 -10 ------- Run | Yrd Mat Min Peak Influence 240 | . 240 33 Initial 33 | . . 33 Average 77 | . 81 24 Maximum Alert Level 1 | . 1 . Low Security (%) 96 | 100 96 100 Level 1 3 | . 3 . Level 2 . | . . . Level 3 . | . . . Level 4 . | . . . Level 5 . | . . . High Security . | . . . Max Security . | . . . Squads Dispatched 3 | . 3 . Investigation . | . . . Extermination . | . . . Reinforcement 3 | . 3 . Assault . | . . . Garrison . | . . . Intercept . | . . . Searches Triggered . | . . . Construction Impeded . | . . . Haulers Reinforced . | . . . Active Scanning Responses . | . . . Cargo Convoy Interrupts . | . . . Stealth | -11 -10 -10 --------- Run | Yrd Mat Min Distress Signals 1 | . 1 . Communications Jammed . | . . . Distress Signals . | . . . Times Spotted 41 | . 29 12 Peak Tracking Total 12 | . 3 12 Tactical Retreats 3 | . 2 1 Traps | -11 -10 -10 ------- Run | Yrd Mat Min Traps Triggered . | . . . Indirectly . | . . . Trap Hack Attempts . | . . . Triggered . | . . . Disarmed . | . . . Reprogrammed . | . . . Reused . | . . . Traps Extracted . | . . . Installed . | . . . Triggered . | . . . Machines | -11 -10 -10 ---------- Run | Yrd Mat Min Machines Disabled 2 | . 2 . Max in Single Turn 1 | . 1 . Machines Repaired . | . . . Machines Dismantled . | . . . Machines Sabotaged . | . . . Overloaded Fab Kills . | . . . Hacking | -11 -10 -10 --------- Run | Yrd Mat Min Machines Accessed 5 | . 5 . Terminals 2 | . 2 . Fabricators . | . . . Repair Stations 1 | . 1 . Recycling Units 2 | . 2 . Scanalyzers . | . . . Garrison Access . | . . . Total Hacks 15 | . 15 . Successful 9 | . 9 . Failed 6 | . 6 . Catastrophic 2 | . 2 . Database Lockouts . | . . . Manual . | . . . Terminals 4 | . 4 . Fabricators . | . . . Repair Stations 4 | . 4 . Recycling Units 7 | . 7 . Scanalyzers . | . . . Garrison Access . | . . . Terminal Hacks 2 | . 2 . Locate Traps 1 | . 1 . Hauler Manifests 1 | . 1 . Fabricator Hacks . | . . . Repair Station Hacks 2 | . 2 . Scan Component 1 | . 1 . Repair 1 | . 1 . Recycling Unit Hacks 5 | . 5 . Process 1 | . 1 . Report Inventory 2 | . 2 . Retrieve Components 2 | . 2 . Scanalyzer . | . . . Garrison Access Hacks . | . . . Unauthorized Hacks . | . . . Terminals . | . . . Fabricators . | . . . Repair Stations . | . . . Recycling Units . | . . . Scanalyzers . | . . . Garrison Access . | . . . Data Cores Recovered . | . . . Used . | . . . Hacking Detections 4 | . 4 . Full Trace Events . | . . . Feedback Events . | . . . Feedback Blocked . | . . . Robot Schematics Acquired . | . . . Robots Built . | . . . Authchips . | . . . Time . | . . . Total Robot Build Rating . | . . . Part Schematics Acquired . | . . . Parts Built . | . . . Authchips . | . . . Time . | . . . Total Part Build Rating . | . . . Parts Repaired 1 | . 1 . Time 32 | . 32 . Parts Recycled . | . . . Recycled Matter 178 | . 178 . Retrieved Matter . | . . . Retrieved Components 10 | . 10 . Parts Scanalyzed . | . . . Part Schematics Acquired . | . . . Parts Damaged . | . . . Bothacking | -11 -10 -10 ------------ Run | Yrd Mat Min Used RIF Installer . | . . . Robots Hacked . | . . . Non-combat . | . . . Combat . | . . . Robot Hacks Applied . | . . . Relay Couplers Released . | . . . Fabnet Peak Effective % . | . . . Robots Rewired . | . . . Allies Hacked . | . . . Hacks Repelled . | . . . Allies | -11 -10 -10 -------- Run | Yrd Mat Min Total Allies . | . . . Largest Group . | . . . Highest-Rated Group . | . . . Highest-Rated Ally . | . . . Total Orders . | . . . Ally Attacks . | . . . Total Damage . | . . . Kills . | . . . Allies Corrupted . | . . . Allies Melted . | . . . Intel | -11 -10 -10 ------- Run | Yrd Mat Min Robot Analysis Total . | . . . Derelict Logs Recovered . | . . . Drone Launches . | . . . Drone Recoveries . | . . . Exploration | -11 -10 -10 ------------- Run | Yrd Mat Min Turns Passed 2067 | 75 1939 53 Spaces Moved 1025 | 46 964 15 Core 30 | 29 . 1 Treads 922 | 17 905 . Legs 73 | . 59 14 Wheels . | . . . Hover . | . . . Flight . | . . . Fastest Speed 50 | 50 160 120 Average Speed 160 | 129 161 194 Slowest Speed 400 | 160 190 400 Overloaded Moves . | . . . Propulsion Burnouts . | . . . Robots Hopped . | . . . Cave-ins Triggered . | . . . Exploration Rate (%) 36 | 3 99 8 Regions Visited 2 Branch Regions 1 Pre-discovered Areas 1 | . . 1 Known Exits Taken 1 | . 1 . Unknown Exits Taken 1 | 1 . . Scrap Searched . | . . . Spaces Dug 6 | . 6 . Terrain Destroyed 6 | . 6 . Melee 6 | . 6 . Projectile . | . . . AOE . | . . . Terrain Rammed . | . . . Walls Destroyed . | . . . Machines Disabled . | . . . Actions | -11 -10 -10 --------- Run | Yrd Mat Min Total 1319 | 61 1232 26 Wait 161 | . 160 1 Move 1023 | 45 963 15 Hop . | . . . Pick Up 31 | 10 21 . Fast Attach 1 | . 1 . Attach 10 | 6 3 1 Detach 2 | . 2 . Swap 12 | . 12 . Drop 11 | . 11 . Fire 52 | . 43 9 Melee 16 | . 16 . Ram . | . . . Kick . | . . . Crush . | . . . Escape Stasis . | . . . Rewire . | . . . Trap . | . . . Miscellaneous . | . . . Route ------- -11/Scrapyard -10/Materials (discovered 5 exits: *Mat x3 / *Min / *Sub) -10/Mines History --------- Turn | Location | Event 31 | -11/Scrapyard | Discovered new exit (range 15) 76 | -11/Scrapyard | Entered Materials 273 | -10/Materials | Discovered new exit (range 12) 312 | -10/Materials | Build established: Mutant 497 | -10/Materials | Discovered new exit (range 16) 832 | -10/Materials | Discovered new exit (range 9) 979 | -10/Materials | Identified exit to Materials 1434 | -10/Materials | Repaired Spread Laser 1449 | -10/Materials | Discovered exit to Materials (range 11) 1754 | -10/Materials | Discovered new exit (range 7) 1764 | -10/Materials | Identified exit to Subcaves 2013 | -10/Materials | Identified exit to Mines 2015 | -10/Materials | Entered Mines 2016 | -10/Mines | Learned location of Storage (-9) 2016 | -10/Mines | Assembled infested the area 2021 | -10/Mines | Assisted by a Guerilla fighting off Assembled 2052 | -10/Mines | Core integrity fell below 50% 2066 | -10/Mines | Core integrity fell below 20% 2068 | -10/Mines | Destroyed by as-08710 with Assembled Maul Last Messages --------------- 7T-GRD(g) slips back into the shadows. A derelict emerges from the shadows: "You need to get out of here! I've been tracking a group of Assembled to figure out where they're coming from, and they're closing on this area, come on!" I7-SXF(h): "I'll hold them off! Go on ahead or try to find another way!" HV Slug penetrates as-73171. HV Slug penetrates Wall. I7-SXF(h) destroyed. as-73171 destroyed. Spread Laser destroyed. Lgt. Ion Engine destroyed. Knocked back. as-95522 destroyed. as-98827 destroyed. as-22285 destroyed. Overheating: Spread Laser damaged (-2). Imp. Aluminum Leg destroyed. System corrupted by crushing effect (+4). Imp. Aluminum Leg broken. Overheating: Short circuit. Spread Laser destroyed. Map ----- +----------------------------------------------------+ | ?????????????????????????????????????????????????? | | ?????????????????????????????????????????????????? | | ?????????????????????????????????????????????????? | | ?????????????????????????????????????????????????? | | ?????????????????????????????????????????????????? | | ?????????????????????????????????????????????????? | | ?????????????????????????????????????????????????? | | ?????????????????????????????????????????????????? | | ?????????????????????????????????????????????????? | | ?????????????????????????????????????????????????? | | ?????????????????????????????????????????????????? | | ?????????????????????????????????????????????????? | | ?????????????????????????????????????????????????? | | ?????????????????????????????????????????????????? | | ?????????????????????????????????????????????????? | | ?????????????????????????????????#???????????????? | | ???????????????????####????????? #???????????????? | | ??????????????????## ##??????? ##??????????????? | | ??????????????????# ##????? % ## ##????????? | | ?????????????????## #####" #????????? | | ????????????????## %! """??????????? | | ???????????????## a % """??????????? | | ???????????????# a%%##### """??????????? | | ???????????????# aaa##????? ?????????? | | ???????????????# a a #??????? ####????????? | | ???????????????# a@ #?????????#???????????? | | ??????????????# ## ##?????????????????????? | | ?????????????# ######??????????????????????? | | ?????????????# ##???????????????????????????? | | ?????????????## #?????????????????????????????? | | ??????????????## #??????????????????????????????? | | ???????????????###???????????????????????????????? | | ?????????????????????????????????????????????????? | | ?????????????????????????????????????????????????? | | ?????????????????????????????????????????????????? | | ?????????????????????????????????????????????????? | | ?????????????????????????????????????????????????? | | ?????????????????????????????????????????????????? | | ?????????????????????????????????????????????????? | | ?????????????????????????????????????????????????? | | ?????????????????????????????????????????????????? | | ?????????????????????????????????????????????????? | | ?????????????????????????????????????????????????? | | ?????????????????????????????????????????????????? | | ?????????????????????????????????????????????????? | | ?????????????????????????????????????????????????? | | ?????????????????????????????????????????????????? | | ?????????????????????????????????????????????????? | | ?????????????????????????????????????????????????? | | ?????????????????????????????????????????????????? | +----------------------------------------------------+ Best States ------------- Heat Dissipation 25 Energy Generation 10 Energy Capacity 125 Matter Stores 300 Matter Capacity 300 Sight Range 16 Terrain Scan Density 10 Evasion (%) 43 Targeting Accuracy 6 Recoil Reduction 2 Item Schematics ----------------- None Robot Schematics ------------------ None Fabricated ------------ Nothing Alien Tech Used ----------------- None Achievements -------------- None Challenges ------------ None Game ------ Seed ThermoelectricDrainedEdition Manual? 0 Play Time 00:26:03 Cumulative 3.5 hours Start 2024.03.31 @ 16:38:26 End 2024.03.31 @ 17:14:43 Sessions 1 Manual Loads 0 Difficulty Rogue Special Mode None Game No. 7 Rogue 7 Adventurer 0 Explorer 0 Win Type - Total 0 Types 0/0/0/0/0/0/0/0/0 Lore% 5 Gallery% 7 Achievement% 10 Wizard Run 0 Options --------- Layout 0 ASCII 0 Keyboard 0 Movement Mouse Keybinds 0 Fullscreen 1 Font 24/Smallcaps Map View 56x25 Zoom Use 98% Tactical HUD 0 Map Filters NONE Filters NONE Steam 1 RUN: 56ad6dd3-7f69-4fd4-a32c-8cea6d3c597b